[Event "Titled Tuesday Blitz January 10 Early 2023"]
[White "Liyanage, Ranindu Dilshan"]
[Black "Fernandez Garcia, Gumersindo"]
[WhiteFideId "9915834"]
[BlackFideId "24516740"]
[WhiteElo "2342"]
[BlackElo "2160"]
[Result "0-1"]
[Round "06"]
[TimeControl "180+2"]
[Date "2023.01.10"]
[WhiteClock "0:00:18"]
[BlackClock "0:00:21"]

1. c4 {[%clk 0:02:59]}  Nf6 {[%clk 0:02:54]} 2. Nc3 {[%clk 0:02:59]}  e5 {[%clk 0:02:54]} 3. Nf3 {[%clk 0:02:59]}  e4 {[%clk 0:02:50]} 4. Ng5 {[%clk 0:02:58]}  b5 {[%clk 0:02:50]} 5. d3 {[%clk 0:02:45]}  exd3 {[%clk 0:02:48]} 6. Qxd3 {[%clk 0:02:20]}  b4 {[%clk 0:02:41]} 7. Nd5 {[%clk 0:02:19]}  Bb7 {[%clk 0:02:34]} 8. Qe3+ {[%clk 0:02:10]}  Be7 {[%clk 0:02:28]} 9. Nxf6+ {[%clk 0:02:10]}  gxf6 {[%clk 0:02:25]} 10. Ne4 {[%clk 0:02:10]}  O-O {[%clk 0:02:17]} 11. Ng3 {[%clk 0:01:58]}  Re8 {[%clk 0:02:00]} 12. Qh6 {[%clk 0:01:46]}  Bf8 {[%clk 0:01:55]} 13. Qh5 {[%clk 0:01:46]}  d5 {[%clk 0:01:38]} 14. e3 {[%clk 0:01:43]}  Re5 {[%clk 0:01:31]} 15. Qh4 {[%clk 0:01:38]}  Nc6 {[%clk 0:01:18]} 16. Bd3 {[%clk 0:01:35]}  f5 {[%clk 0:01:14]} 17. Qh5 {[%clk 0:01:29]}  dxc4 {[%clk 0:01:06]} 18. Bxc4 {[%clk 0:01:12]}  Qf6 {[%clk 0:01:05]} 19. O-O {[%clk 0:00:59]}  Qg6 {[%clk 0:01:05]} 20. Qxg6+ {[%clk 0:00:43]}  hxg6 {[%clk 0:01:04]} 21. b3 {[%clk 0:00:44]}  Na5 {[%clk 0:01:01]} 22. Bb2 {[%clk 0:00:44]}  Nxc4 {[%clk 0:00:59]} 23. bxc4 {[%clk 0:00:43]}  Ree8 {[%clk 0:00:56]} 24. Rfd1 {[%clk 0:00:42]}  Red8 {[%clk 0:00:51]} 25. Ne2 {[%clk 0:00:42]}  Be7 {[%clk 0:00:49]} 26. Nd4 {[%clk 0:00:41]}  a6 {[%clk 0:00:47]} 27. Rac1 {[%clk 0:00:38]}  c5 {[%clk 0:00:46]} 28. Nb3 {[%clk 0:00:38]}  Kf8 {[%clk 0:00:41]} 29. Be5 {[%clk 0:00:37]}  Ke8 {[%clk 0:00:39]} 30. Bc7 {[%clk 0:00:37]}  Rxd1+ {[%clk 0:00:38]} 31. Rxd1 {[%clk 0:00:38]}  Bc6 {[%clk 0:00:36]} 32. Bb6 {[%clk 0:00:25]}  Ba4 {[%clk 0:00:36]} 33. Rd5 {[%clk 0:00:25]}  Bxb3 {[%clk 0:00:25]} 34. axb3 {[%clk 0:00:26]}  a5 {[%clk 0:00:25]} 35. Bxc5 {[%clk 0:00:22]}  Bxc5 {[%clk 0:00:22]} 36. Rxc5 {[%clk 0:00:22]}  a4 {[%clk 0:00:23]} 37. bxa4 {[%clk 0:00:23]}  Rxa4 {[%clk 0:00:24]} 38. g3 {[%clk 0:00:21]}  Ra1+ {[%clk 0:00:22]} 39. Kg2 {[%clk 0:00:21]}  Rc1 {[%clk 0:00:23]} 40. Rc7 {[%clk 0:00:18]}  Kf8 {[%clk 0:00:20]} 41. c5 {[%clk 0:00:18]}  Kg7 {[%clk 0:00:19]} 42. Rb7 {[%clk 0:00:18]}  Rxc5 {[%clk 0:00:19]} 43. Rxb4 {[%clk 0:00:19]}  Kf6 {[%clk 0:00:19]} 44. h3 {[%clk 0:00:19]}  Rc2 {[%clk 0:00:19]} 45. Kf3 {[%clk 0:00:19]}  Rd2 {[%clk 0:00:19]} 46. Rb6+ {[%clk 0:00:19]}  Kg7 {[%clk 0:00:19]} 47. Kg2 {[%clk 0:00:19]}  Rc2 {[%clk 0:00:19]} 48. Rb4 {[%clk 0:00:19]}  Ra2 {[%clk 0:00:19]} 49. Rd4 {[%clk 0:00:19]}  Rb2 {[%clk 0:00:20]} 50. Rd1 {[%clk 0:00:20]}  Ra2 {[%clk 0:00:20]} 51. Re1 {[%clk 0:00:20]}  Rb2 {[%clk 0:00:21]} 52. Kf1 {[%clk 0:00:21]}  Ra2 {[%clk 0:00:21]} 53. Re2 {[%clk 0:00:22]}  Ra1+ {[%clk 0:00:21]} 54. Kg2 {[%clk 0:00:23]}  Ra4 {[%clk 0:00:22]} 55. Rc2 {[%clk 0:00:23]}  Rb4 {[%clk 0:00:22]} 56. h4 {[%clk 0:00:23]}  Ra4 {[%clk 0:00:22]} 57. Re2 {[%clk 0:00:24]}  Rb4 {[%clk 0:00:23]} 58. f3 {[%clk 0:00:24]}  Rb3 {[%clk 0:00:22]} 59. Kh3 {[%clk 0:00:25]}  Ra3 {[%clk 0:00:23]} 60. g4 {[%clk 0:00:25]}  fxg4+ {[%clk 0:00:23]} 61. Kxg4 {[%clk 0:00:23]}  Ra4+ {[%clk 0:00:23]} 62. e4 {[%clk 0:00:23]}  Ra5 {[%clk 0:00:22]} 63. f4 {[%clk 0:00:23]}  f5+ {[%clk 0:00:22]} 64. exf5 {[%clk 0:00:23]}  Rxf5 {[%clk 0:00:22]} 65. Re7+ {[%clk 0:00:23]}  Kh6 {[%clk 0:00:22]} 66. Re8 {[%clk 0:00:23]}  Ra5 {[%clk 0:00:23]} 67. Re6 {[%clk 0:00:22]}  Rb5 {[%clk 0:00:22]} 68. Re5 {[%clk 0:00:20]}  Rb1 {[%clk 0:00:21]} 69. Re8 {[%clk 0:00:19]}  Rg1+ {[%clk 0:00:21]} 70. Kf3 {[%clk 0:00:20]}  Rf1+ {[%clk 0:00:21]} 71. Ke4 {[%clk 0:00:20]}  Re1+ {[%clk 0:00:21]} 72. Kf3 {[%clk 0:00:20]}  Rxe8 {[%clk 0:00:21]} 73. Kg4 {[%clk 0:00:20]}  Rf8 {[%clk 0:00:21]} 74. Kg3 {[%clk 0:00:18]}  Kh5 {[%clk 0:00:21]} 0-1


[Site "https://www.chess.com"]

[Event "Titled Tuesday Blitz January 10 Early 2023"]
[White "Hsu, Li Yang"]
[Black "Moskvin, Anatoly"]
[WhiteFideId "5800080"]
[BlackFideId "24199990"]
[WhiteElo "2427"]
[BlackElo "2189"]
[Result "1-0"]
[Round "06"]
[TimeControl "180+2"]
[Date "2023.01.10"]
[WhiteClock "0:00:37"]
[BlackClock "0:00:06"]

1. Nf3 {[%clk 0:03:00]}  d6 {[%clk 0:02:59]} 2. d4 {[%clk 0:02:59]}  Bg4 {[%clk 0:02:57]} 3. g3 {[%clk 0:02:55]}  Qd7 {[%clk 0:02:54]} 4. Nbd2 {[%clk 0:02:42]}  Bh3 {[%clk 0:02:48]} 5. Bxh3 {[%clk 0:02:34]}  Qxh3 {[%clk 0:02:47]} 6. c4 {[%clk 0:02:35]}  Nd7 {[%clk 0:02:32]} 7. Ne4 {[%clk 0:02:26]}  h6 {[%clk 0:02:27]} 8. Qb3 {[%clk 0:02:23]}  Rb8 {[%clk 0:02:26]} 9. Be3 {[%clk 0:02:09]}  e6 {[%clk 0:02:15]} 10. O-O-O {[%clk 0:02:07]}  b5 {[%clk 0:01:52]} 11. Nc3 {[%clk 0:01:57]}  b4 {[%clk 0:01:15]} 12. Nb5 {[%clk 0:01:51]}  Rb7 {[%clk 0:01:11]} 13. Rhg1 {[%clk 0:01:46]}  a6 {[%clk 0:01:07]} 14. g4 {[%clk 0:01:41]}  axb5 {[%clk 0:00:53]} 15. Rg3 {[%clk 0:01:40]}  Qxg3 {[%clk 0:00:51]} 16. hxg3 {[%clk 0:01:40]}  bxc4 {[%clk 0:00:50]} 17. Qxc4 {[%clk 0:01:41]}  Ngf6 {[%clk 0:00:50]} 18. Qc6 {[%clk 0:01:37]}  Rb8 {[%clk 0:00:37]} 19. g5 {[%clk 0:01:35]}  hxg5 {[%clk 0:00:35]} 20. Nxg5 {[%clk 0:01:35]}  Be7 {[%clk 0:00:34]} 21. Kb1 {[%clk 0:01:27]}  Nd5 {[%clk 0:00:30]} 22. Nf3 {[%clk 0:00:48]}  Rb6 {[%clk 0:00:20]} 23. Qa4 {[%clk 0:00:47]}  c6 {[%clk 0:00:11]} 24. Bd2 {[%clk 0:00:45]}  Nc3+ {[%clk 0:00:11]} 25. bxc3 {[%clk 0:00:43]}  bxc3+ {[%clk 0:00:12]} 26. Kc2 {[%clk 0:00:42]}  cxd2 {[%clk 0:00:13]} 27. Nxd2 {[%clk 0:00:41]}  O-O {[%clk 0:00:12]} 28. Rb1 {[%clk 0:00:39]}  Rxb1 {[%clk 0:00:11]} 29. Nxb1 {[%clk 0:00:38]}  Nb6 {[%clk 0:00:08]} 30. Qa7 {[%clk 0:00:37]}  Nd7 {[%clk 0:00:06]} 1-0


[Site "https://www.chess.com"]

[Event "Titled Tuesday Blitz January 10 Early 2023"]
[White "Sreyas Payyappat"]
[Black "Godzwon, Iwo"]
[WhiteFideId "46674969"]
[BlackFideId "21802483"]
[WhiteElo "2076"]
[BlackElo "2394"]
[Result "0-1"]
[Round "06"]
[TimeControl "180+2"]
[Date "2023.01.10"]
[WhiteClock "0:00:02"]
[BlackClock "0:00:05"]

1. e4 {[%clk 0:03:00]}  c5 {[%clk 0:02:58]} 2. Nf3 {[%clk 0:03:00]}  Nc6 {[%clk 0:02:59]} 3. d4 {[%clk 0:03:01]}  cxd4 {[%clk 0:02:59]} 4. Nxd4 {[%clk 0:03:01]}  e6 {[%clk 0:03:00]} 5. Nc3 {[%clk 0:03:02]}  Qc7 {[%clk 0:03:00]} 6. Ndb5 {[%clk 0:03:02]}  Qb8 {[%clk 0:03:00]} 7. Be3 {[%clk 0:03:01]}  Nf6 {[%clk 0:02:43]} 8. Qd2 {[%clk 0:02:49]}  Bb4 {[%clk 0:02:35]} 9. a3 {[%clk 0:02:31]}  Nxe4 {[%clk 0:02:32]} 10. Qd3 {[%clk 0:02:29]}  Nxc3 {[%clk 0:02:28]} 11. bxc3 {[%clk 0:02:30]}  Be7 {[%clk 0:02:28]} 12. O-O-O {[%clk 0:02:15]}  d5 {[%clk 0:02:17]} 13. c4 {[%clk 0:02:06]}  dxc4 {[%clk 0:02:06]} 14. Qxc4 {[%clk 0:02:04]}  a6 {[%clk 0:02:05]} 15. Nd4 {[%clk 0:02:02]}  Bxa3+ {[%clk 0:01:59]} 16. Kb1 {[%clk 0:02:00]}  O-O {[%clk 0:01:59]} 17. Bd3 {[%clk 0:01:53]}  e5 {[%clk 0:01:50]} 18. Nb3 {[%clk 0:01:47]}  Be6 {[%clk 0:01:48]} 19. Qh4 {[%clk 0:01:44]}  f5 {[%clk 0:01:49]} 20. Bc4 {[%clk 0:01:40]}  Qe8 {[%clk 0:01:46]} 21. Nc5 {[%clk 0:01:32]}  Bxc5 {[%clk 0:01:41]} 22. Bxc5 {[%clk 0:01:33]}  Rf7 {[%clk 0:01:40]} 23. Rhe1 {[%clk 0:01:33]}  Rc8 {[%clk 0:01:28]} 24. Rd6 {[%clk 0:01:25]}  Bxc4 {[%clk 0:01:24]} 25. Qxc4 {[%clk 0:01:26]}  e4 {[%clk 0:01:20]} 26. Red1 {[%clk 0:01:22]}  h6 {[%clk 0:01:10]} 27. Qb3 {[%clk 0:01:07]}  Kh7 {[%clk 0:01:02]} 28. Re6 {[%clk 0:01:00]}  Qg8 {[%clk 0:01:02]} 29. Rdd6 {[%clk 0:00:54]}  Re8 {[%clk 0:00:52]} 30. Rg6 {[%clk 0:00:34]}  Rfe7 {[%clk 0:00:17]} 31. Qh3 {[%clk 0:00:18]}  Qf7 {[%clk 0:00:09]} 32. Rxh6+ {[%clk 0:00:06]}  gxh6 {[%clk 0:00:10]} 33. Qxh6+ {[%clk 0:00:06]}  Kg8 {[%clk 0:00:11]} 34. Rg6+ {[%clk 0:00:06]}  Qg7 {[%clk 0:00:09]} 35. Bxe7 {[%clk 0:00:05]}  Rxe7 {[%clk 0:00:10]} 36. Rxg7+ {[%clk 0:00:05]}  Rxg7 {[%clk 0:00:11]} 37. Qe6+ {[%clk 0:00:06]}  Rf7 {[%clk 0:00:11]} 38. h4 {[%clk 0:00:05]}  Kg7 {[%clk 0:00:12]} 39. h5 {[%clk 0:00:06]}  Ne7 {[%clk 0:00:04]} 40. h6+ {[%clk 0:00:06]}  Kf8 {[%clk 0:00:04]} 41. g3 {[%clk 0:00:05]}  Rh7 {[%clk 0:00:04]} 42. Qf6+ {[%clk 0:00:04]}  Ke8 {[%clk 0:00:05]} 43. Kc1 {[%clk 0:00:02]}  Rf7 {[%clk 0:00:05]} 0-1


[Site "https://www.chess.com"]

[Event "Titled Tuesday Blitz January 10 Early 2023"]
[White "Andreev, Konstantin"]
[Black "Taboas Rodriguez, Daniel"]
[WhiteFideId "24239305"]
[BlackFideId "2208466"]
[WhiteElo "2195"]
[BlackElo "2371"]
[Result "0-1"]
[Round "06"]
[TimeControl "180+2"]
[Date "2023.01.10"]
[WhiteClock "0:00:05"]
[BlackClock "0:00:43"]

1. e4 {[%clk 0:03:00]}  e5 {[%clk 0:03:00]} 2. Nf3 {[%clk 0:02:59]}  Nc6 {[%clk 0:03:00]} 3. Bc4 {[%clk 0:02:59]}  Nf6 {[%clk 0:03:00]} 4. d4 {[%clk 0:02:58]}  exd4 {[%clk 0:02:59]} 5. e5 {[%clk 0:02:58]}  d5 {[%clk 0:02:59]} 6. Bb5 {[%clk 0:02:58]}  Ne4 {[%clk 0:02:59]} 7. Nxd4 {[%clk 0:02:59]}  Bc5 {[%clk 0:03:00]} 8. O-O {[%clk 0:02:57]}  Bd7 {[%clk 0:02:57]} 9. Bxc6 {[%clk 0:02:57]}  bxc6 {[%clk 0:02:56]} 10. f3 {[%clk 0:02:57]}  Ng5 {[%clk 0:02:56]} 11. f4 {[%clk 0:02:57]}  Ne6 {[%clk 0:02:55]} 12. Be3 {[%clk 0:02:58]}  Bb6 {[%clk 0:02:51]} 13. f5 {[%clk 0:02:48]}  Nxd4 {[%clk 0:02:51]} 14. Bxd4 {[%clk 0:02:49]}  c5 {[%clk 0:02:42]} 15. Be3 {[%clk 0:02:49]}  Qe7 {[%clk 0:02:33]} 16. Qxd5 {[%clk 0:02:43]}  O-O {[%clk 0:02:32]} 17. f6 {[%clk 0:01:23]}  Qe6 {[%clk 0:02:16]} 18. Qxe6 {[%clk 0:01:22]}  Bxe6 {[%clk 0:02:14]} 19. Nc3 {[%clk 0:01:22]}  c4 {[%clk 0:02:11]} 20. Kf2 {[%clk 0:01:21]}  Rfd8 {[%clk 0:02:10]} 21. Rfd1 {[%clk 0:01:19]}  Bg4 {[%clk 0:02:05]} 22. Rxd8+ {[%clk 0:01:17]}  Rxd8 {[%clk 0:02:05]} 23. h3 {[%clk 0:01:18]}  Rd2+ {[%clk 0:02:00]} 24. Kg3 {[%clk 0:01:01]}  Bxe3 {[%clk 0:02:00]} 25. hxg4 {[%clk 0:01:00]}  h6 {[%clk 0:01:34]} 26. Kf3 {[%clk 0:00:56]}  Bd4 {[%clk 0:01:26]} 27. Ne4 {[%clk 0:00:30]}  Rxc2 {[%clk 0:01:19]} 28. Rd1 {[%clk 0:00:30]}  Bxe5 {[%clk 0:01:12]} 29. Rd8+ {[%clk 0:00:27]}  Kh7 {[%clk 0:01:12]} 30. Rd7 {[%clk 0:00:26]}  Kg6 {[%clk 0:01:12]} 31. fxg7 {[%clk 0:00:21]}  Kxg7 {[%clk 0:01:12]} 32. Rd5 {[%clk 0:00:20]}  Bxb2 {[%clk 0:01:07]} 33. Rc5 {[%clk 0:00:20]}  c3 {[%clk 0:01:02]} 34. Rxc7 {[%clk 0:00:20]}  Rc1 {[%clk 0:01:02]} 35. Nf2 {[%clk 0:00:03]}  c2 {[%clk 0:01:01]} 36. Rc5 {[%clk 0:00:03]}  Bd4 {[%clk 0:00:58]} 37. Rc4 {[%clk 0:00:03]}  Bxf2 {[%clk 0:00:54]} 38. Kxf2 {[%clk 0:00:03]}  Kf6 {[%clk 0:00:50]} 39. Kg3 {[%clk 0:00:03]}  Ke5 {[%clk 0:00:49]} 40. Rc7 {[%clk 0:00:03]}  a5 {[%clk 0:00:44]} 41. a4 {[%clk 0:00:02]}  Kd4 {[%clk 0:00:43]} 42. Rd7+ {[%clk 0:00:01]}  Kc3 {[%clk 0:00:43]} 43. Rc7+ {[%clk 0:00:02]}  Kb3 {[%clk 0:00:43]} 44. Rb7+ {[%clk 0:00:02]}  Kxa4 {[%clk 0:00:44]} 45. Rc7 {[%clk 0:00:02]}  Kb3 {[%clk 0:00:43]} 46. Rb7+ {[%clk 0:00:03]}  Kc3 {[%clk 0:00:44]} 47. Rc7+ {[%clk 0:00:03]}  Kd4 {[%clk 0:00:44]} 48. Rd7+ {[%clk 0:00:04]}  Ke5 {[%clk 0:00:44]} 49. Rc7 {[%clk 0:00:04]}  a4 {[%clk 0:00:44]} 50. Rc3 {[%clk 0:00:05]}  a3 {[%clk 0:00:44]} 51. Rxa3 {[%clk 0:00:05]}  Rb1 {[%clk 0:00:43]} 52. Ra5+ {[%clk 0:00:04]}  Kf6 {[%clk 0:00:43]} 53. Ra6+ {[%clk 0:00:05]}  Kg7 {[%clk 0:00:43]} 0-1


[Site "https://www.chess.com"]

[Event "Titled Tuesday Blitz January 10 Early 2023"]
[White "Dehtiarov, Roman"]
[Black "Jimenez, Joaquin"]
[WhiteFideId "14186640"]
[BlackFideId "109860"]
[WhiteElo "2289"]
[BlackElo "2195"]
[Result "1-0"]
[Round "06"]
[TimeControl "180+2"]
[Date "2023.01.10"]
[WhiteClock "0:00:47"]
[BlackClock "0:00:02"]

1. e4 {[%clk 0:02:50]}  e5 {[%clk 0:02:59]} 2. Nf3 {[%clk 0:02:50]}  Nc6 {[%clk 0:02:59]} 3. Bb5 {[%clk 0:02:50]}  a6 {[%clk 0:03:00]} 4. Ba4 {[%clk 0:02:50]}  Nf6 {[%clk 0:02:59]} 5. Nc3 {[%clk 0:02:50]}  b5 {[%clk 0:02:58]} 6. Bb3 {[%clk 0:02:50]}  Be7 {[%clk 0:02:58]} 7. d3 {[%clk 0:02:50]}  O-O {[%clk 0:02:55]} 8. O-O {[%clk 0:02:50]}  d6 {[%clk 0:02:56]} 9. a4 {[%clk 0:02:50]}  b4 {[%clk 0:02:49]} 10. Nd5 {[%clk 0:02:50]}  Na5 {[%clk 0:02:42]} 11. Nxf6+ {[%clk 0:02:48]}  Bxf6 {[%clk 0:02:42]} 12. Ba2 {[%clk 0:02:48]}  Rb8 {[%clk 0:02:39]} 13. Bd2 {[%clk 0:02:48]}  c5 {[%clk 0:02:38]} 14. Bd5 {[%clk 0:02:48]}  Be6 {[%clk 0:02:37]} 15. Qe2 {[%clk 0:02:41]}  Qc7 {[%clk 0:02:30]} 16. Kh1 {[%clk 0:02:40]}  Nc6 {[%clk 0:02:28]} 17. Bxc6 {[%clk 0:02:38]}  Qxc6 {[%clk 0:02:26]} 18. b3 {[%clk 0:02:38]}  Qd7 {[%clk 0:02:13]} 19. Rae1 {[%clk 0:02:37]}  Kh8 {[%clk 0:02:08]} 20. h3 {[%clk 0:02:36]}  Be7 {[%clk 0:02:06]} 21. Nh2 {[%clk 0:02:34]}  f5 {[%clk 0:01:58]} 22. exf5 {[%clk 0:02:33]}  Bxf5 {[%clk 0:01:58]} 23. f4 {[%clk 0:02:34]}  Bf6 {[%clk 0:01:56]} 24. fxe5 {[%clk 0:02:32]}  Bxe5 {[%clk 0:01:55]} 25. Bf4 {[%clk 0:02:32]}  Bc3 {[%clk 0:01:55]} 26. Bd2 {[%clk 0:02:31]}  Rbe8 {[%clk 0:01:52]} 27. Qf2 {[%clk 0:02:30]}  Bd4 {[%clk 0:01:49]} 28. Be3 {[%clk 0:02:29]}  Bc3 {[%clk 0:01:38]} 29. Re2 {[%clk 0:02:28]}  Kg8 {[%clk 0:01:29]} 30. Bd2 {[%clk 0:02:20]}  Bxd2 {[%clk 0:01:14]} 31. Rxd2 {[%clk 0:02:20]}  Bxh3 {[%clk 0:01:14]} 32. Qg1 {[%clk 0:02:10]}  Qb7 {[%clk 0:01:03]} 33. d4 {[%clk 0:02:05]}  Rxf1 {[%clk 0:00:59]} 34. Qxf1 {[%clk 0:02:06]}  Rf8 {[%clk 0:00:57]} 35. Rf2 {[%clk 0:02:00]}  Rxf2 {[%clk 0:00:55]} 36. Qxf2 {[%clk 0:02:01]}  cxd4 {[%clk 0:00:50]} 37. Nf3 {[%clk 0:02:01]}  Bd7 {[%clk 0:00:42]} 38. Qxd4 {[%clk 0:02:00]}  Qc6 {[%clk 0:00:39]} 39. Qd3 {[%clk 0:01:39]}  Bg4 {[%clk 0:00:31]} 40. Nd4 {[%clk 0:01:39]}  Qd5 {[%clk 0:00:28]} 41. Qe3 {[%clk 0:01:38]}  h6 {[%clk 0:00:26]} 42. Qf4 {[%clk 0:01:34]}  Qh5+ {[%clk 0:00:24]} 43. Kg1 {[%clk 0:01:33]}  d5 {[%clk 0:00:18]} 44. Qb8+ {[%clk 0:01:25]}  Kh7 {[%clk 0:00:17]} 45. Qxb4 {[%clk 0:01:25]}  Qe5 {[%clk 0:00:14]} 46. Qd2 {[%clk 0:01:25]}  Be6 {[%clk 0:00:12]} 47. b4 {[%clk 0:01:24]}  Bf7 {[%clk 0:00:11]} 48. c3 {[%clk 0:01:22]}  Bg6 {[%clk 0:00:10]} 49. b5 {[%clk 0:01:22]}  axb5 {[%clk 0:00:10]} 50. axb5 {[%clk 0:01:23]}  Qe4 {[%clk 0:00:09]} 51. Kf2 {[%clk 0:01:17]}  Qh4+ {[%clk 0:00:08]} 52. Kg1 {[%clk 0:01:16]}  Qe4 {[%clk 0:00:08]} 53. Qe2 {[%clk 0:01:13]}  Qb1+ {[%clk 0:00:07]} 54. Qf1 {[%clk 0:01:12]}  Qb2 {[%clk 0:00:05]} 55. Qf3 {[%clk 0:00:52]}  Qc1+ {[%clk 0:00:04]} 56. Kh2 {[%clk 0:00:51]}  Qb1 {[%clk 0:00:03]} 57. Qg3 {[%clk 0:00:51]}  Qb2 {[%clk 0:00:02]} 58. Ne6 {[%clk 0:00:47]} 1-0


[Site "https://www.chess.com"]

[Event "Titled Tuesday Blitz January 10 Early 2023"]
[White "Kalajzic, Ivan"]
[Black "Blanco Ronquillo, Humberto L."]
[WhiteFideId "14506378"]
[BlackFideId "3504239"]
[WhiteElo "2062"]
[BlackElo "2442"]
[Result "0-1"]
[Round "06"]
[TimeControl "180+2"]
[Date "2023.01.10"]
[WhiteClock "0:00:01"]
[BlackClock "0:00:58"]

1. d4 {[%clk 0:03:00]}  Nf6 {[%clk 0:02:58]} 2. Nc3 {[%clk 0:03:01]}  d5 {[%clk 0:02:57]} 3. Bg5 {[%clk 0:03:01]}  Nbd7 {[%clk 0:02:56]} 4. e3 {[%clk 0:03:01]}  e6 {[%clk 0:02:55]} 5. f4 {[%clk 0:03:01]}  Be7 {[%clk 0:02:54]} 6. Nf3 {[%clk 0:03:01]}  b6 {[%clk 0:02:54]} 7. Bd3 {[%clk 0:03:01]}  Bb7 {[%clk 0:02:54]} 8. Ne5 {[%clk 0:03:02]}  Ne4 {[%clk 0:02:51]} 9. Bxe7 {[%clk 0:03:00]}  Qxe7 {[%clk 0:02:52]} 10. Nxe4 {[%clk 0:02:58]}  dxe4 {[%clk 0:02:53]} 11. Be2 {[%clk 0:02:49]}  Nxe5 {[%clk 0:02:44]} 12. fxe5 {[%clk 0:02:47]}  Qb4+ {[%clk 0:02:44]} 13. Qd2 {[%clk 0:02:33]}  Qxb2 {[%clk 0:02:44]} 14. O-O {[%clk 0:02:34]}  Qa3 {[%clk 0:02:40]} 15. c4 {[%clk 0:02:00]}  O-O {[%clk 0:02:36]} 16. Rab1 {[%clk 0:01:51]}  Rad8 {[%clk 0:02:33]} 17. Rb3 {[%clk 0:01:50]}  Qe7 {[%clk 0:02:33]} 18. c5 {[%clk 0:01:46]}  Bd5 {[%clk 0:02:32]} 19. Rc3 {[%clk 0:01:43]}  bxc5 {[%clk 0:02:25]} 20. Rxc5 {[%clk 0:01:42]}  c6 {[%clk 0:02:26]} 21. Qa5 {[%clk 0:01:39]}  Rb8 {[%clk 0:02:24]} 22. Rc2 {[%clk 0:01:34]}  Qg5 {[%clk 0:02:19]} 23. Rf4 {[%clk 0:01:24]}  Rb1+ {[%clk 0:02:18]} 24. Bf1 {[%clk 0:01:24]}  Qe7 {[%clk 0:02:16]} 25. Rcf2 {[%clk 0:01:22]}  h6 {[%clk 0:02:03]} 26. h3 {[%clk 0:01:21]}  Rc1 {[%clk 0:01:55]} 27. Kh2 {[%clk 0:01:15]}  Rb1 {[%clk 0:01:45]} 28. Be2 {[%clk 0:01:13]}  Rb2 {[%clk 0:01:41]} 29. Bh5 {[%clk 0:01:02]}  Rxf2 {[%clk 0:01:39]} 30. Rxf2 {[%clk 0:01:03]}  Qg5 {[%clk 0:01:30]} 31. Bg4 {[%clk 0:00:18]}  Qxe3 {[%clk 0:01:29]} 32. Qd2 {[%clk 0:00:14]}  Qxd2 {[%clk 0:01:25]} 33. Rxd2 {[%clk 0:00:15]}  Rb8 {[%clk 0:01:25]} 34. Bh5 {[%clk 0:00:12]}  Rb4 {[%clk 0:01:19]} 35. Rf2 {[%clk 0:00:11]}  g6 {[%clk 0:01:19]} 36. Bd1 {[%clk 0:00:08]}  Rxd4 {[%clk 0:01:19]} 37. Bb3 {[%clk 0:00:07]}  e3 {[%clk 0:01:13]} 38. Re2 {[%clk 0:00:07]}  Re4 {[%clk 0:01:13]} 39. Bc2 {[%clk 0:00:05]}  Rxe5 {[%clk 0:01:12]} 40. Kg3 {[%clk 0:00:06]}  g5 {[%clk 0:01:12]} 41. h4 {[%clk 0:00:06]}  Kg7 {[%clk 0:01:12]} 42. hxg5 {[%clk 0:00:05]}  hxg5 {[%clk 0:01:13]} 43. Kg4 {[%clk 0:00:06]}  Bc4 {[%clk 0:01:10]} 44. Re1 {[%clk 0:00:06]}  e2 {[%clk 0:01:10]} 45. g3 {[%clk 0:00:06]}  f6 {[%clk 0:01:02]} 46. a4 {[%clk 0:00:05]}  Re3 {[%clk 0:01:01]} 47. a5 {[%clk 0:00:05]}  Bd5 {[%clk 0:01:00]} 48. Kh5 {[%clk 0:00:01]}  Bf3+ {[%clk 0:00:58]} 0-1


[Site "https://www.chess.com"]

[Event "Titled Tuesday Blitz January 10 Early 2023"]
[White "Szpar, Milosz"]
[Black "Golizadeh, Asghar"]
[WhiteFideId "1184989"]
[BlackFideId "12505269"]
[WhiteElo "2447"]
[BlackElo "2455"]
[Result "0-1"]
[Round "06"]
[TimeControl "180+2"]
[Date "2023.01.10"]
[WhiteClock "0:00:06"]
[BlackClock "0:00:06"]

1. e4 {[%clk 0:03:00]}  c5 {[%clk 0:02:39]} 2. Nf3 {[%clk 0:03:00]}  e6 {[%clk 0:02:39]} 3. d4 {[%clk 0:03:00]}  cxd4 {[%clk 0:02:40]} 4. Nxd4 {[%clk 0:03:00]}  a6 {[%clk 0:02:40]} 5. Nc3 {[%clk 0:02:59]}  b5 {[%clk 0:02:39]} 6. Bd3 {[%clk 0:03:00]}  Bb7 {[%clk 0:02:38]} 7. O-O {[%clk 0:02:59]}  Nc6 {[%clk 0:02:38]} 8. Nxc6 {[%clk 0:02:59]}  Bxc6 {[%clk 0:02:39]} 9. Re1 {[%clk 0:02:59]}  Qb8 {[%clk 0:02:39]} 10. e5 {[%clk 0:02:53]}  Ne7 {[%clk 0:02:35]} 11. Bf4 {[%clk 0:02:50]}  Ng6 {[%clk 0:02:33]} 12. Bg3 {[%clk 0:02:50]}  Be7 {[%clk 0:02:32]} 13. Qh5 {[%clk 0:02:50]}  O-O {[%clk 0:02:30]} 14. Ne4 {[%clk 0:02:48]}  Qa7 {[%clk 0:02:24]} 15. Ng5 {[%clk 0:02:46]}  Bxg5 {[%clk 0:02:23]} 16. Qxg5 {[%clk 0:02:47]}  Rac8 {[%clk 0:02:21]} 17. h4 {[%clk 0:02:47]}  h6 {[%clk 0:02:20]} 18. Qg4 {[%clk 0:02:47]}  Ne7 {[%clk 0:02:18]} 19. Bf4 {[%clk 0:02:44]}  Kh8 {[%clk 0:02:17]} 20. Re3 {[%clk 0:02:44]}  f5 {[%clk 0:02:02]} 21. exf6 {[%clk 0:02:43]}  Rxf6 {[%clk 0:02:03]} 22. Be5 {[%clk 0:02:42]}  Rf7 {[%clk 0:02:02]} 23. Qh5 {[%clk 0:02:35]}  Kg8 {[%clk 0:01:55]} 24. Bh7+ {[%clk 0:02:34]}  Kf8 {[%clk 0:01:52]} 25. g4 {[%clk 0:02:03]}  Bf3 {[%clk 0:01:37]} 26. a4 {[%clk 0:01:49]}  Qb6 {[%clk 0:01:29]} 27. axb5 {[%clk 0:01:47]}  Qxb5 {[%clk 0:01:22]} 28. Ra5 {[%clk 0:01:45]}  Qxa5 {[%clk 0:01:10]} 29. Bxg7+ {[%clk 0:01:45]}  Kxg7 {[%clk 0:01:11]} 30. Qxa5 {[%clk 0:01:45]}  Kxh7 {[%clk 0:01:11]} 31. g5 {[%clk 0:01:34]}  Rxc2 {[%clk 0:00:57]} 32. Qa1 {[%clk 0:01:16]}  Rc4 {[%clk 0:00:48]} 33. Qb1+ {[%clk 0:01:10]}  Ng6 {[%clk 0:00:47]} 34. h5 {[%clk 0:00:42]}  Bxh5 {[%clk 0:00:35]} 35. Rh3 {[%clk 0:00:43]}  Rg4+ {[%clk 0:00:33]} 36. Kf1 {[%clk 0:00:40]}  Rxg5 {[%clk 0:00:32]} 37. Qd3 {[%clk 0:00:34]}  Rgf5 {[%clk 0:00:29]} 38. Rh2 {[%clk 0:00:32]}  Kg7 {[%clk 0:00:21]} 39. Rg2 {[%clk 0:00:30]}  Re5 {[%clk 0:00:19]} 40. Qd4 {[%clk 0:00:30]}  Rf5 {[%clk 0:00:13]} 41. Qxd7+ {[%clk 0:00:29]}  Kf6 {[%clk 0:00:11]} 42. Qd8+ {[%clk 0:00:28]}  Kf7 {[%clk 0:00:12]} 43. Qc7+ {[%clk 0:00:27]}  Ne7 {[%clk 0:00:11]} 44. Rg3 {[%clk 0:00:24]}  Rc5 {[%clk 0:00:09]} 45. Qd8 {[%clk 0:00:20]}  Bf3 {[%clk 0:00:06]} 46. Rxf3 {[%clk 0:00:09]}  Rxf3 {[%clk 0:00:06]} 47. Qd2 {[%clk 0:00:09]}  Rcf5 {[%clk 0:00:06]} 48. Qxh6 {[%clk 0:00:06]}  Rxf2+ {[%clk 0:00:07]} 49. Ke1 {[%clk 0:00:06]}  Ng6 {[%clk 0:00:07]} 50. Qh7+ {[%clk 0:00:06]}  Kf6 {[%clk 0:00:08]} 51. Qg8 {[%clk 0:00:07]}  Rg2 {[%clk 0:00:07]} 52. Qd8+ {[%clk 0:00:07]}  Ke5 {[%clk 0:00:07]} 53. Qc7+ {[%clk 0:00:07]}  Kf6 {[%clk 0:00:06]} 54. Qc3+ {[%clk 0:00:06]}  Ne5 {[%clk 0:00:05]} 55. Qc8 {[%clk 0:00:06]}  Nd3+ {[%clk 0:00:05]} 56. Kd1 {[%clk 0:00:06]}  Rf1# {[%clk 0:00:06]} 0-1


[Site "https://www.chess.com"]